[Event "Early-Titled-Tuesday-Blitz-May-07-2024"]
[Site "Chess.com"]
[Date "2024.05.07"]
[Round "7"]
[White "yonaltimur"]
[Black "SpongeBob_03"]
[Result "0-1"]
[WhiteElo "2372"]
[BlackElo "2256"]
[TimeControl "180+1"]
[EndTime "9:20:02 PDT"]
[Termination "SpongeBob_03 won by resignation"]

1. e4 {[%clk 0:03:00.9]} 1... c5 {[%clk 0:02:57.9]} 2. Nf3 {[%clk 0:02:51]} 2...
e6 {[%clk 0:02:54.4]} 3. d4 {[%clk 0:02:50.8]} 3... cxd4 {[%clk 0:02:53.9]} 4.
Nxd4 {[%clk 0:02:50.8]} 4... Nf6 {[%clk 0:02:54.2]} 5. Nc3 {[%clk 0:02:50.6]}
5... Nc6 {[%clk 0:02:54.5]} 6. Nxc6 {[%clk 0:02:50.7]} 6... bxc6 {[%clk
0:02:54.1]} 7. e5 {[%clk 0:02:51.3]} 7... Nd5 {[%clk 0:02:53.9]} 8. Ne4 {[%clk
0:02:51.5]} 8... Qc7 {[%clk 0:02:53.6]} 9. f4 {[%clk 0:02:49.6]} 9... Qb6 {[%clk
0:02:54]} 10. c4 {[%clk 0:02:46.1]} 10... Bb4+ {[%clk 0:02:48.3]} 11. Ke2 {[%clk
0:02:44.9]} 11... Ba6 {[%clk 0:02:47]} 12. Kf3 {[%clk 0:02:31.7]} 12... f5
{[%clk 0:02:45.6]} 13. exf6 {[%clk 0:02:21]} 13... Nxf6 {[%clk 0:02:40.9]} 14.
Be3 {[%clk 0:01:59.5]} 14... c5 {[%clk 0:02:13.1]} 15. Nxf6+ {[%clk 0:01:44.8]}
15... gxf6 {[%clk 0:02:14]} 16. Bd3 {[%clk 0:01:39.1]} 16... Bb7+ {[%clk
0:02:11.1]} 17. Kf2 {[%clk 0:01:39]} 17... Qc6 {[%clk 0:01:58.7]} 18. Rg1 {[%clk
0:01:36.5]} 18... O-O-O {[%clk 0:01:56.7]} 19. a3 {[%clk 0:01:34.9]} 19... Ba5
{[%clk 0:01:55.5]} 20. b4 {[%clk 0:01:31.7]} 20... cxb4 {[%clk 0:01:48.3]} 21.
axb4 {[%clk 0:01:32.6]} 21... Bxb4 {[%clk 0:01:48.5]} 22. Rxa7 {[%clk 0:01:32]}
22... Bc5 {[%clk 0:01:48.2]} 23. Ra2 {[%clk 0:01:16.9]} 23... Bxe3+ {[%clk
0:01:44.1]} 24. Kxe3 {[%clk 0:01:17.8]} 24... d5 {[%clk 0:01:43.6]} 25. Qb3
{[%clk 0:01:14.3]} 25... Qc5+ {[%clk 0:01:32.3]} 26. Kd2 {[%clk 0:01:03.3]}
26... Qxg1 {[%clk 0:00:54.5]} 27. Ra7 {[%clk 0:00:59]} 27... Qxa7 {[%clk
0:00:52.5]} 0-1

[Event "Early-Titled-Tuesday-Blitz-May-07-2024"]
[Site "Chess.com"]
[Date "2024.05.07"]
[Round "7"]
[White "Iball95"]
[Black "DenisQ"]
[Result "1/2-1/2"]
[WhiteElo "2915"]
[BlackElo "2719"]
[TimeControl "180+1"]
[EndTime "9:20:04 PDT"]
[Termination "Game drawn by agreement"]

1. e4 {[%clk 0:02:58.9]} 1... c6 {[%clk 0:02:59.5]} 2. d4 {[%clk 0:02:59.2]}
2... d5 {[%clk 0:02:59.7]} 3. exd5 {[%clk 0:03:00.1]} 3... cxd5 {[%clk
0:02:59.6]} 4. c4 {[%clk 0:03:01]} 4... Nf6 {[%clk 0:02:58.4]} 5. Nc3 {[%clk
0:03:01.5]} 5... Nc6 {[%clk 0:02:55.3]} 6. Nf3 {[%clk 0:03:01.6]} 6... Bg4
{[%clk 0:02:52.8]} 7. cxd5 {[%clk 0:03:01.6]} 7... Nxd5 {[%clk 0:02:52.2]} 8. h3
{[%clk 0:03:02.2]} 8... Bxf3 {[%clk 0:02:49.8]} 9. Qxf3 {[%clk 0:03:03.1]} 9...
e6 {[%clk 0:02:49.6]} 10. Bb5 {[%clk 0:03:03.4]} 10... Be7 {[%clk 0:02:48.8]}
11. O-O {[%clk 0:03:03.6]} 11... O-O {[%clk 0:02:47.9]} 12. Nxd5 {[%clk
0:03:04.4]} 12... Qxd5 {[%clk 0:02:47]} 13. Qxd5 {[%clk 0:03:04.7]} 13... exd5
{[%clk 0:02:47.6]} 14. Be3 {[%clk 0:03:05.3]} 14... Bf6 {[%clk 0:02:45.5]} 15.
Rfd1 {[%clk 0:03:05.5]} 15... Rac8 {[%clk 0:02:44.5]} 16. Rac1 {[%clk 0:03:04]}
16... a6 {[%clk 0:02:35.9]} 17. Ba4 {[%clk 0:02:59.5]} 17... Rfd8 {[%clk
0:02:31.4]} 18. Kf1 {[%clk 0:02:58.9]} 18... Kf8 {[%clk 0:02:27.3]} 19. Bb3
{[%clk 0:02:56.2]} 19... Ne7 {[%clk 0:02:09.8]} 20. g4 {[%clk 0:02:51.8]} 20...
Rxc1 {[%clk 0:02:08]} 21. Rxc1 {[%clk 0:02:52.7]} 21... Nc6 {[%clk 0:02:08.1]}
22. Rd1 {[%clk 0:02:46.6]} 22... Na5 {[%clk 0:01:57.5]} 23. Bc2 {[%clk
0:02:45.5]} 23... Nc4 {[%clk 0:01:56.2]} 24. b3 {[%clk 0:02:37.8]} 24... Nxe3+
{[%clk 0:01:55.8]} 25. fxe3 {[%clk 0:02:38.7]} 25... h6 {[%clk 0:01:55]} 26. Bd3
{[%clk 0:02:30.4]} 26... Rc8 {[%clk 0:01:52.8]} 27. Ke2 {[%clk 0:02:28]} 27...
Ke7 {[%clk 0:01:51.8]} 28. Kd2 {[%clk 0:02:28]} 28... g6 {[%clk 0:01:40.3]} 29.
Rf1 {[%clk 0:02:26]} 29... Bg5 {[%clk 0:01:35.1]} 30. Be2 {[%clk 0:02:26.3]}
30... Ke6 {[%clk 0:01:28.5]} 31. Bf3 {[%clk 0:02:26.3]} 31... b5 {[%clk
0:01:25.9]} 32. Be2 {[%clk 0:02:21.8]} 32... Rc7 {[%clk 0:01:18]} 33. Ra1 {[%clk
0:02:15.9]} 33... Kd6 {[%clk 0:01:15.2]} 34. a4 {[%clk 0:02:16.1]} 34... b4
{[%clk 0:00:47.1]} 35. Bxa6 {[%clk 0:02:14.4]} 35... Rc3 {[%clk 0:00:46.8]} 36.
Bd3 {[%clk 0:02:10.4]} 36... Rxb3 {[%clk 0:00:46.9]} 37. a5 {[%clk 0:02:09.9]}
37... Ra3 {[%clk 0:00:46.9]} 38. Rb1 {[%clk 0:02:03.7]} 38... Rxa5 {[%clk
0:00:45]} 39. Rxb4 {[%clk 0:02:03.7]} 39... Ra2+ {[%clk 0:00:44.6]} 40. Bc2
{[%clk 0:01:54.7]} 40... Bxe3+ {[%clk 0:00:45.1]} 41. Kd3 {[%clk 0:01:55.1]}
41... Ra3+ {[%clk 0:00:42.2]} 42. Rb3 {[%clk 0:01:53.9]} 42... Rxb3+ {[%clk
0:00:42.3]} 43. Bxb3 {[%clk 0:01:54.8]} 43... Bf2 {[%clk 0:00:42.5]} 44. Ba2
{[%clk 0:01:55.1]} 1/2-1/2

[Event "Early-Titled-Tuesday-Blitz-May-07-2024"]
[Site "Chess.com"]
[Date "2024.05.07"]
[Round "7"]
[White "juancruzarias"]
[Black "miaou33"]
[Result "0-1"]
[WhiteElo "2719"]
[BlackElo "2573"]
[TimeControl "180+1"]
[EndTime "9:20:04 PDT"]
[Termination "miaou33 won by resignation"]

1. d4 {[%clk 0:03:00.9]} 1... d5 {[%clk 0:03:00.1]} 2. Nf3 {[%clk 0:02:56.8]}
2... Nf6 {[%clk 0:02:59.9]} 3. c4 {[%clk 0:02:55.7]} 3... c6 {[%clk 0:03:00.5]}
4. g3 {[%clk 0:02:54.9]} 4... Bf5 {[%clk 0:02:55.7]} 5. Nc3 {[%clk 0:02:53.4]}
5... e6 {[%clk 0:02:56.1]} 6. Qb3 {[%clk 0:02:48.3]} 6... Qb6 {[%clk 0:02:52.3]}
7. c5 {[%clk 0:02:48]} 7... Qc7 {[%clk 0:02:50.4]} 8. Bf4 {[%clk 0:02:45]} 8...
Qc8 {[%clk 0:02:51]} 9. Nh4 {[%clk 0:02:44.3]} 9... Nbd7 {[%clk 0:02:41.9]} 10.
Bg2 {[%clk 0:02:31.7]} 10... Be7 {[%clk 0:02:39.8]} 11. O-O {[%clk 0:02:26.6]}
11... O-O {[%clk 0:02:39.2]} 12. Nxf5 {[%clk 0:02:13.8]} 12... exf5 {[%clk
0:02:39.3]} 13. Qc2 {[%clk 0:02:10.2]} 13... g6 {[%clk 0:02:38.9]} 14. b4 {[%clk
0:02:09.9]} 14... Re8 {[%clk 0:02:19.7]} 15. Rab1 {[%clk 0:02:09.9]} 15... Ne4
{[%clk 0:02:08.6]} 16. b5 {[%clk 0:02:06.6]} 16... Bf6 {[%clk 0:02:05.5]} 17.
bxc6 {[%clk 0:02:05.2]} 17... bxc6 {[%clk 0:02:06.4]} 18. Rfd1 {[%clk
0:02:01.8]} 18... Ndxc5 {[%clk 0:02:01.6]} 19. e3 {[%clk 0:01:33.6]} 19... Nxc3
{[%clk 0:01:49.5]} 20. Qxc3 {[%clk 0:01:32.8]} 20... Ne4 {[%clk 0:01:44.9]} 21.
Bxe4 {[%clk 0:01:32.9]} 21... fxe4 {[%clk 0:01:42.8]} 22. Rdc1 {[%clk
0:01:23.7]} 22... Re6 {[%clk 0:01:40.7]} 23. Qa5 {[%clk 0:01:22.5]} 23... Bd8
{[%clk 0:01:32.3]} 24. Qa4 {[%clk 0:01:12.9]} 24... g5 {[%clk 0:01:27.6]} 25.
Be5 {[%clk 0:01:11]} 25... f6 {[%clk 0:01:28.2]} 26. Bb8 {[%clk 0:01:02.2]}
26... Rxb8 {[%clk 0:01:25.3]} 27. Qxa7 {[%clk 0:01:02.3]} 27... Ra8 {[%clk
0:01:17.2]} 28. Qc5 {[%clk 0:01:02.2]} 28... Be7 {[%clk 0:01:10.6]} 29. Qc2
{[%clk 0:01:01.7]} 29... Qa6 {[%clk 0:01:07.8]} 30. Qe2 {[%clk 0:00:58.6]} 30...
Qxe2 {[%clk 0:01:06.9]} 0-1

[Event "Early-Titled-Tuesday-Blitz-May-07-2024"]
[Site "Chess.com"]
[Date "2024.05.07"]
[Round "7"]
[White "MagnusCarlsen"]
[Black "NikitaShnadrygin"]
[Result "1-0"]
[WhiteElo "3206"]
[BlackElo "2702"]
[TimeControl "180+1"]
[EndTime "9:20:05 PDT"]
[Termination "MagnusCarlsen won by resignation"]

1. a4 {[%clk 0:03:00.9]} 1... e5 {[%clk 0:02:53.9]} 2. Ra3 {[%clk 0:02:50.8]}
2... Bxa3 {[%clk 0:02:52.8]} 3. Nxa3 {[%clk 0:02:51.4]} 3... Nf6 {[%clk
0:02:51.3]} 4. b3 {[%clk 0:02:50.3]} 4... O-O {[%clk 0:02:51]} 5. Bb2 {[%clk
0:02:50.6]} 5... Re8 {[%clk 0:02:50.5]} 6. e3 {[%clk 0:02:50.7]} 6... d5 {[%clk
0:02:49]} 7. Nf3 {[%clk 0:02:50]} 7... Nc6 {[%clk 0:02:34.9]} 8. h3 {[%clk
0:02:48.4]} 8... a6 {[%clk 0:02:32.5]} 9. Be2 {[%clk 0:02:45.8]} 9... h6 {[%clk
0:02:14.3]} 10. O-O {[%clk 0:02:45]} 10... Bf5 {[%clk 0:02:10.1]} 11. d4 {[%clk
0:02:44.4]} 11... exd4 {[%clk 0:02:07.6]} 12. Nxd4 {[%clk 0:02:44.4]} 12... Nxd4
{[%clk 0:02:07.1]} 13. Bxd4 {[%clk 0:02:42.8]} 13... Qd6 {[%clk 0:02:05.3]} 14.
Qa1 {[%clk 0:02:38.8]} 14... c5 {[%clk 0:01:48.2]} 15. Bb2 {[%clk 0:02:36.2]}
15... d4 {[%clk 0:01:45.7]} 16. Nc4 {[%clk 0:02:35.1]} 16... Qc7 {[%clk
0:01:42.7]} 17. Bf3 {[%clk 0:02:34.2]} 17... b5 {[%clk 0:01:31.1]} 18. axb5
{[%clk 0:02:32.8]} 18... Be4 {[%clk 0:01:24.4]} 19. Bxe4 {[%clk 0:02:29.7]}
19... Nxe4 {[%clk 0:01:22]} 20. b6 {[%clk 0:02:30.6]} 20... Qc6 {[%clk
0:01:19.6]} 21. exd4 {[%clk 0:02:31.2]} 21... cxd4 {[%clk 0:01:12.7]} 22. Bxd4
{[%clk 0:02:32.1]} 22... f6 {[%clk 0:01:02.4]} 23. Re1 {[%clk 0:02:30.2]} 23...
Ng5 {[%clk 0:00:51.8]} 24. Rxe8+ {[%clk 0:02:29.4]} 24... Rxe8 {[%clk
0:00:52.7]} 25. Be3 {[%clk 0:02:28]} 25... Rd8 {[%clk 0:00:38.6]} 26. Qc1 {[%clk
0:02:14.1]} 26... Ne4 {[%clk 0:00:34.9]} 27. Qe1 {[%clk 0:02:10.3]} 27... Re8
{[%clk 0:00:32.9]} 28. Qb4 {[%clk 0:02:06.6]} 28... Qb5 {[%clk 0:00:27.5]} 29.
Qxb5 {[%clk 0:02:04.9]} 29... axb5 {[%clk 0:00:27.5]} 30. Na5 {[%clk 0:02:05.8]}
30... g5 {[%clk 0:00:09.2]} 31. c4 {[%clk 0:02:02.7]} 31... bxc4 {[%clk
0:00:04.9]} 32. bxc4 {[%clk 0:02:03.6]} 32... f5 {[%clk 0:00:01.7]} 33. b7
{[%clk 0:02:02.6]} 33... f4 {[%clk 0:00:02]} 34. Ba7 {[%clk 0:02:01.8]} 1-0

[Event "Early-Titled-Tuesday-Blitz-May-07-2024"]
[Site "Chess.com"]
[Date "2024.05.07"]
[Round "7"]
[White "JG-17"]
[Black "mapleaff"]
[Result "1-0"]
[WhiteElo "2533"]
[BlackElo "2272"]
[TimeControl "180+1"]
[EndTime "9:20:06 PDT"]
[Termination "JG-17 won by resignation"]

1. d4 {[%clk 0:03:00.9]} 1... Nf6 {[%clk 0:02:56.6]} 2. Nf3 {[%clk 0:03:01.2]}
2... d5 {[%clk 0:02:55.5]} 3. g3 {[%clk 0:03:01.4]} 3... e6 {[%clk 0:02:54.9]}
4. Bg2 {[%clk 0:03:02]} 4... Be7 {[%clk 0:02:55.4]} 5. c4 {[%clk 0:03:02.6]}
5... O-O {[%clk 0:02:54.6]} 6. O-O {[%clk 0:03:02.8]} 6... dxc4 {[%clk
0:02:54.8]} 7. Qc2 {[%clk 0:03:02.6]} 7... b5 {[%clk 0:02:54.9]} 8. a4 {[%clk
0:02:55.7]} 8... Bb7 {[%clk 0:02:54.6]} 9. axb5 {[%clk 0:02:55.3]} 9... a6
{[%clk 0:02:55.2]} 10. Nc3 {[%clk 0:02:47]} 10... axb5 {[%clk 0:02:54.1]} 11.
Rxa8 {[%clk 0:02:47.9]} 11... Bxa8 {[%clk 0:02:54.4]} 12. Nxb5 {[%clk
0:02:48.7]} 12... Bd5 {[%clk 0:02:54.9]} 13. Bf4 {[%clk 0:02:46.1]} 13... c5
{[%clk 0:02:48.7]} 14. Rd1 {[%clk 0:02:33.5]} 14... Qb6 {[%clk 0:02:26.8]} 15.
Na3 {[%clk 0:02:30.7]} 15... cxd4 {[%clk 0:02:24.5]} 16. Nxc4 {[%clk 0:02:07.4]}
16... Qb7 {[%clk 0:01:27.3]} 17. Nd6 {[%clk 0:01:55]} 17... Qa6 {[%clk
0:00:41.6]} 18. Qc7 {[%clk 0:01:46.9]} 18... Bxf3 {[%clk 0:00:21.2]} 19. Bxf3
{[%clk 0:01:43.1]} 19... Bd8 {[%clk 0:00:09.3]} 20. Qxb8 {[%clk 0:01:42.3]}
20... Bb6 {[%clk 0:00:04.6]} 21. Qb7 {[%clk 0:01:40.1]} 21... Qxb7 {[%clk
0:00:04.4]} 22. Nxb7 {[%clk 0:01:39.2]} 22... Ra8 {[%clk 0:00:03.5]} 23. Nc5
{[%clk 0:01:32.9]} 23... Bxc5 {[%clk 0:00:03.1]} 24. Bxa8 {[%clk 0:01:32.3]} 1-0

[Event "Early-Titled-Tuesday-Blitz-May-07-2024"]
[Site "Chess.com"]
[Date "2024.05.07"]
[Round "7"]
[White "abelmat"]
[Black "mary-sanna"]
[Result "1-0"]
[WhiteElo "2028"]
[BlackElo "2203"]
[TimeControl "180+1"]
[EndTime "9:20:07 PDT"]
[Termination "abelmat won by resignation"]

1. d4 {[%clk 0:03:00.9]} 1... d5 {[%clk 0:02:59.8]} 2. c4 {[%clk 0:03:00.5]}
2... e6 {[%clk 0:03:00.1]} 3. Nf3 {[%clk 0:03:00.6]} 3... Nf6 {[%clk 0:03:00.3]}
4. Nc3 {[%clk 0:03:00.9]} 4... Be7 {[%clk 0:02:58.4]} 5. Bf4 {[%clk 0:03:00.1]}
5... O-O {[%clk 0:02:56.4]} 6. e3 {[%clk 0:03:00.3]} 6... dxc4 {[%clk
0:02:55.1]} 7. Bxc4 {[%clk 0:02:59.7]} 7... c5 {[%clk 0:02:56]} 8. O-O {[%clk
0:02:59]} 8... Nc6 {[%clk 0:02:55.8]} 9. a3 {[%clk 0:02:57.2]} 9... cxd4 {[%clk
0:02:54.9]} 10. exd4 {[%clk 0:02:57.3]} 10... a6 {[%clk 0:02:52.9]} 11. Re1
{[%clk 0:02:54.2]} 11... b5 {[%clk 0:02:52.7]} 12. Ba2 {[%clk 0:02:52.4]} 12...
Bb7 {[%clk 0:02:52.4]} 13. Rc1 {[%clk 0:02:52]} 13... Qd7 {[%clk 0:02:46.3]} 14.
Ne5 {[%clk 0:02:43.8]} 14... Nxe5 {[%clk 0:02:44.1]} 15. dxe5 {[%clk 0:02:41.5]}
15... Nd5 {[%clk 0:02:21.9]} 16. Nxd5 {[%clk 0:02:38.9]} 16... exd5 {[%clk
0:02:22.8]} 17. e6 {[%clk 0:02:20.8]} 17... fxe6 {[%clk 0:02:18.5]} 18. Rc7
{[%clk 0:02:16.2]} 18... Qd8 {[%clk 0:02:11.5]} 19. Bg3 {[%clk 0:01:47.7]} 19...
Bc8 {[%clk 0:01:47.6]} 20. Bxd5 {[%clk 0:01:37.5]} 20... Bd6 {[%clk 0:01:40.2]}
21. Rxc8 {[%clk 0:01:15.7]} 21... Rxc8 {[%clk 0:01:34.6]} 22. Bxe6+ {[%clk
0:01:13.4]} 22... Kh8 {[%clk 0:01:33.9]} 23. Bxd6 {[%clk 0:01:00.4]} 23... Rf6
{[%clk 0:01:24.9]} 24. Bxc8 {[%clk 0:00:39.9]} 24... Rxd6 {[%clk 0:01:23.9]} 25.
Qxd6 {[%clk 0:00:38.1]} 25... Qxc8 {[%clk 0:01:21.1]} 26. Qe6 {[%clk 0:00:33.1]}
1-0

[Event "Early-Titled-Tuesday-Blitz-May-07-2024"]
[Site "Chess.com"]
[Date "2024.05.07"]
[Round "7"]
[White "HajiyevKanan"]
[Black "sudtirolese06"]
[Result "1-0"]
[WhiteElo "2580"]
[BlackElo "2434"]
[TimeControl "180+1"]
[EndTime "9:20:25 PDT"]
[Termination "HajiyevKanan won by resignation"]

1. d4 {[%clk 0:03:00.9]} 1... g6 {[%clk 0:02:59.1]} 2. Nf3 {[%clk 0:03:00.8]}
2... Bg7 {[%clk 0:02:59.7]} 3. g3 {[%clk 0:03:01.1]} 3... d6 {[%clk 0:02:57.4]}
4. Bg2 {[%clk 0:03:02]} 4... Nf6 {[%clk 0:02:57.3]} 5. O-O {[%clk 0:03:02.6]}
5... O-O {[%clk 0:02:58.2]} 6. b3 {[%clk 0:03:03.1]} 6... c5 {[%clk 0:02:57.3]}
7. Bb2 {[%clk 0:03:04]} 7... Nc6 {[%clk 0:02:56.9]} 8. c4 {[%clk 0:03:04]} 8...
d5 {[%clk 0:02:56]} 9. cxd5 {[%clk 0:03:02.9]} 9... Nxd5 {[%clk 0:02:55.6]} 10.
e4 {[%clk 0:03:03.3]} 10... Nb6 {[%clk 0:02:53.7]} 11. e5 {[%clk 0:02:50]} 11...
cxd4 {[%clk 0:02:48.7]} 12. Re1 {[%clk 0:02:50.6]} 12... Bg4 {[%clk 0:02:46.8]}
13. h3 {[%clk 0:02:40.7]} 13... Bxf3 {[%clk 0:02:47]} 14. Bxf3 {[%clk
0:02:39.9]} 14... Nxe5 {[%clk 0:02:47.5]} 15. Bxb7 {[%clk 0:02:39.3]} 15... Rb8
{[%clk 0:02:48.1]} 16. Bg2 {[%clk 0:02:27]} 16... e6 {[%clk 0:02:46.4]} 17. Na3
{[%clk 0:02:12.3]} 17... Nd5 {[%clk 0:02:37.7]} 18. Bxd4 {[%clk 0:02:05.9]}
18... Qa5 {[%clk 0:02:36.9]} 19. Bxe5 {[%clk 0:01:58.7]} 19... Bxe5 {[%clk
0:02:34.7]} 20. Nc4 {[%clk 0:01:58.8]} 20... Qxe1+ {[%clk 0:02:32.1]} 21. Qxe1
{[%clk 0:01:57.5]} 21... Bxa1 {[%clk 0:02:32.5]} 22. Qxa1 {[%clk 0:01:58.1]}
22... Rfc8 {[%clk 0:02:29.1]} 23. h4 {[%clk 0:01:49.7]} 23... Rc5 {[%clk
0:02:24.4]} 24. h5 {[%clk 0:01:49.1]} 24... gxh5 {[%clk 0:02:24.1]} 25. Qe5
{[%clk 0:01:46]} 25... Rbc8 {[%clk 0:02:18.8]} 26. Qxh5 {[%clk 0:01:44.5]} 26...
Ne7 {[%clk 0:02:18.1]} 27. Qg4+ {[%clk 0:01:42.5]} 27... Ng6 {[%clk 0:02:18.5]}
28. Qd4 {[%clk 0:01:33.1]} 28... h5 {[%clk 0:01:47.2]} 29. Be4 {[%clk
0:01:31.5]} 29... Ne7 {[%clk 0:01:38.8]} 30. Qf6 {[%clk 0:01:27.8]} 30... Nf5
{[%clk 0:01:33.4]} 31. Qg5+ {[%clk 0:01:23]} 31... Ng7 {[%clk 0:01:33.3]} 32.
Qh6 {[%clk 0:01:19.8]} 32... f5 {[%clk 0:01:30.3]} 33. Bf3 {[%clk 0:01:18.3]}
33... Rd8 {[%clk 0:01:29]} 34. Bxh5 {[%clk 0:01:16.8]} 34... f4 {[%clk
0:01:19.3]} 35. Bg6 {[%clk 0:01:11]} 35... Rd1+ {[%clk 0:01:16.7]} 36. Kg2
{[%clk 0:01:10.5]} 36... Rf5 {[%clk 0:00:38.9]} 37. Qh7+ {[%clk 0:01:05.5]} 1-0

[Event "Early-Titled-Tuesday-Blitz-May-07-2024"]
[Site "Chess.com"]
[Date "2024.05.07"]
[Round "7"]
[White "sterpfi"]
[Black "Zarinur"]
[Result "0-1"]
[WhiteElo "2311"]
[BlackElo "2539"]
[TimeControl "180+1"]
[EndTime "9:20:25 PDT"]
[Termination "Zarinur won by resignation"]

1. e4 {[%clk 0:03:00.9]} 1... e5 {[%clk 0:02:59.2]} 2. Nf3 {[%clk 0:02:59.3]}
2... Nc6 {[%clk 0:02:58.3]} 3. Bc4 {[%clk 0:02:59.5]} 3... Nf6 {[%clk
0:02:52.7]} 4. d4 {[%clk 0:02:58.9]} 4... exd4 {[%clk 0:02:49.4]} 5. e5 {[%clk
0:02:59.8]} 5... d5 {[%clk 0:02:47]} 6. Bb5 {[%clk 0:03:00.3]} 6... Ne4 {[%clk
0:02:47.7]} 7. Nxd4 {[%clk 0:02:59.3]} 7... Bc5 {[%clk 0:02:48.1]} 8. Be3 {[%clk
0:02:52.7]} 8... O-O {[%clk 0:02:33.8]} 9. Nxc6 {[%clk 0:02:39]} 9... bxc6
{[%clk 0:02:21.9]} 10. Bxc6 {[%clk 0:02:39.9]} 10... Bxe3 {[%clk 0:02:17.9]} 11.
fxe3 {[%clk 0:02:36.1]} 11... Qh4+ {[%clk 0:02:11.8]} 12. g3 {[%clk 0:02:11.7]}
12... Nxg3 {[%clk 0:02:07.3]} 13. Qd4 {[%clk 0:01:09.9]} 13... Ne4+ {[%clk
0:01:56.3]} 14. Kd1 {[%clk 0:00:59.4]} 14... Rb8 {[%clk 0:01:41.3]} 15. Nd2
{[%clk 0:00:50.6]} 15... Nf2+ {[%clk 0:01:36.3]} 16. Ke2 {[%clk 0:00:50.7]}
16... Bg4+ {[%clk 0:01:21.6]} 17. Nf3 {[%clk 0:00:37.3]} 17... Nxh1 {[%clk
0:01:20]} 18. Rxh1 {[%clk 0:00:32.8]} 18... Bxf3+ {[%clk 0:01:14.2]} 19. Kxf3
{[%clk 0:00:33.7]} 19... Qxd4 {[%clk 0:01:14.8]} 20. exd4 {[%clk 0:00:34.2]}
20... Rxb2 {[%clk 0:01:15.5]} 21. Bxd5 {[%clk 0:00:32.8]} 21... Rxc2 {[%clk
0:01:14.8]} 22. h4 {[%clk 0:00:27.7]} 22... Rd8 {[%clk 0:01:07.7]} 23. Rb1
{[%clk 0:00:27.3]} 23... g6 {[%clk 0:01:03]} 24. Rb5 {[%clk 0:00:23.1]} 24... c6
{[%clk 0:01:00.6]} 0-1

[Event "Early-Titled-Tuesday-Blitz-May-07-2024"]
[Site "Chess.com"]
[Date "2024.05.07"]
[Round "7"]
[White "TheoSlade"]
[Black "Stanbad1"]
[Result "0-1"]
[WhiteElo "2475"]
[BlackElo "2606"]
[TimeControl "180+1"]
[EndTime "9:20:32 PDT"]
[Termination "Stanbad1 won on time"]

1. d4 {[%clk 0:03:00.9]} 1... Nf6 {[%clk 0:02:59.6]} 2. c4 {[%clk 0:03:01.3]}
2... c5 {[%clk 0:02:59.9]} 3. d5 {[%clk 0:03:01.4]} 3... b5 {[%clk 0:03:00.6]}
4. cxb5 {[%clk 0:03:02.3]} 4... a6 {[%clk 0:03:01.1]} 5. bxa6 {[%clk 0:03:03.2]}
5... g6 {[%clk 0:03:01.4]} 6. Nc3 {[%clk 0:03:03.7]} 6... Bg7 {[%clk 0:03:01.9]}
7. e4 {[%clk 0:03:04.2]} 7... O-O {[%clk 0:03:02.2]} 8. e5 {[%clk 0:03:02.4]}
8... Ne8 {[%clk 0:03:02.1]} 9. Nf3 {[%clk 0:03:02.6]} 9... d6 {[%clk 0:03:01.2]}
10. exd6 {[%clk 0:03:01.2]} 10... Nxd6 {[%clk 0:03:01.2]} 11. Be2 {[%clk
0:02:59.1]} 11... Bxa6 {[%clk 0:03:01]} 12. O-O {[%clk 0:02:58.3]} 12... Qb6
{[%clk 0:03:00.7]} 13. a4 {[%clk 0:02:47.2]} 13... Nd7 {[%clk 0:02:56.2]} 14.
Re1 {[%clk 0:02:44.4]} 14... Rfe8 {[%clk 0:02:50.6]} 15. Bxa6 {[%clk 0:02:38.8]}
15... Qxa6 {[%clk 0:02:50.1]} 16. Bg5 {[%clk 0:02:36.1]} 16... Kf8 {[%clk
0:02:48]} 17. Qc2 {[%clk 0:02:29.7]} 17... Nb6 {[%clk 0:02:46.5]} 18. b3 {[%clk
0:01:52.7]} 18... Rac8 {[%clk 0:02:33.3]} 19. Rac1 {[%clk 0:01:44.8]} 19... Qa5
{[%clk 0:02:24.7]} 20. Ne4 {[%clk 0:01:38.4]} 20... Nxd5 {[%clk 0:02:20.7]} 21.
Nxc5 {[%clk 0:01:29.3]} 21... Nb4 {[%clk 0:02:19]} 22. Nd7+ {[%clk 0:01:02.3]}
22... Kg8 {[%clk 0:02:17.6]} 23. Qd2 {[%clk 0:00:57.8]} 23... Rcd8 {[%clk
0:02:07.2]} 24. Rxe7 {[%clk 0:00:28.6]} 24... Ne4 {[%clk 0:01:57.2]} 25. Rxe4
{[%clk 0:00:25.8]} 25... Rxe4 {[%clk 0:01:54.2]} 26. Bxd8 {[%clk 0:00:26.4]}
26... Qxd8 {[%clk 0:01:53.7]} 27. Nf6+ {[%clk 0:00:23.5]} 27... Qxf6 {[%clk
0:01:45.2]} 28. Rc8+ {[%clk 0:00:23.4]} 28... Bf8 {[%clk 0:01:45.3]} 29. h3
{[%clk 0:00:10.8]} 29... Kg7 {[%clk 0:01:43.6]} 30. a5 {[%clk 0:00:07.8]} 30...
Bd6 {[%clk 0:01:40.3]} 31. h4 {[%clk 0:00:04.8]} 31... Qa1+ {[%clk 0:01:32.3]}
32. Qc1 {[%clk 0:00:01.3]} 32... Qxa5 {[%clk 0:01:29]} 33. Nd2 {[%clk
0:00:01.5]} 33... Nd3 {[%clk 0:01:27.4]} 0-1